fUSD/lending_fUSD_20240702
["ID","MTS","AMOUNT","RATE_DAILY","PERIOD"]
[330863402,1719878431240,276.0,0.0001499,30]
[330863403,1719878431547,254.0,0.0001499,30]
[330863404,1719878431736,276.0,0.0001498,30]
[330863405,1719878432059,254.0,0.0001498,30]
[330863406,1719878432209,144.5,0.0001497,30]
[330863407,1719878432234,131.5,0.0001497,30]
[330863408,1719878432568,254.0,0.0001497,30]
[330863410,1719878490720,150.0,0.00021932,120]
[330863413,1719878551621,177.0,0.0001499,30]
[330863414,1719878552142,177.0,0.0001498,30]
[330863415,1719878552621,177.0,0.0001497,30]
[330863417,1719878672243,150.5,0.0001499,30]
[330863418,1719878672720,150.5,0.0001498,30]
[330863419,1719878674093,150.5,0.0001497,30]
[330863422,1719878790840,150.0,0.00021854,120]
[330863423,1719878791216,193.0,0.0001499,30]
[330863424,1719878791654,150.5,0.0001499,30]
[330863425,1719878791702,193.0,0.0001498,30]
[330863426,1719878792156,150.5,0.0001498,30]
[330863427,1719878792195,193.0,0.0001497,30]
[330863428,1719878792615,150.5,0.0001497,30]
[330863429,1719878798298,574.63,0.00012817,2]
[330863432,1719878878485,1902.39925616,0.00012302,2]
[330863433,1719878911798,150.5,0.0001499,30]
[330863434,1719878912270,194.5,0.0001498,30]
[330863446,1719879032628,-217.78950584,0.00013543,2]
[330863447,1719879032638,-77.28049416,0.00013543,2]
[330863448,1719879032653,-414.54400408,0.00013543,2]
[330863449,1719879032666,-218.10166328,0.00013759,2]
[330863450,1719879032675,-158.13028873,0.00013889,2]
[330863451,1719879032685,-209.22404391,0.0001389,2]
[330863452,1719879032700,-286.7120609,0.0001389,2]
[330863453,1719879032710,-953.41320876,0.0001389,2]
[330863457,1719879037866,-2000.0,0.0001389,2]
[330863458,1719879037986,-718.31672816,0.0001389,2]
[330863459,1719879038044,-325.16500787,0.0001389,2]
[330863623,1719879040046,-11419.9730504,0.0001389,2]
[330863625,1719879040057,-597.23608574,0.000139,2]
[330863627,1719879040068,-4829.8355,0.000139,2]
[330863629,1719879040078,-1046.90358276,0.00013973,2]
[330863631,1719879040088,-206.44790114,0.00013973,2]
[330863633,1719879040099,-188.73616721,0.0001399,2]
[330863635,1719879040109,-389.86,0.0001399,3]
[330863637,1719879040120,-8499.54443361,0.00014,2]
[330863785,1719879151117,150.5,0.0001499,30]
[330863786,1719879151573,150.5,0.0001498,30]
[330863787,1719879152034,150.5,0.0001497,30]
[330863789,1719879210719,150.0,0.00021803,120]
[330863796,1719879360305,26883.35104384,0.00011199,2]
[330863797,1719879360329,99007.64895626,0.00011199,2]
[330863803,1719879511195,150.5,0.0001499,30]
[330863804,1719879511660,150.5,0.0001498,30]
[330863805,1719879512157,150.5,0.0001497,30]
[330863808,1719879630736,150.0,0.00021947,120]
[330863811,1719879709258,1399.28371467,0.00011199,7]
[330863812,1719879816257,328.03848419,0.00022,120]
[330863813,1719879821279,328.03848419,0.00022,120]
[330863815,1719879871061,150.5,0.0001499,30]
[330863816,1719879871511,300.9,0.0001498,30]
[330863817,1719879876772,955.73097325,0.00011199,2]
[330863818,1719879956172,1366.73645998,0.00011199,2]
[330863819,1719879957279,711.94,0.0001101,2]
[330863820,1719879963563,348.53483336,0.00011199,2]
[330863821,1719879966075,414.37242025,0.00011199,2]
[330863822,1719879966779,155.0,0.00011199,2]
[330863823,1719879971156,260.6444492,0.00011199,2]
[330863824,1719879971952,959.60022678,0.00011199,2]
[330863825,1719879977790,155.0,0.00011199,2]
[330863826,1719880048935,959.60022678,0.00011199,2]
[330863827,1719880058678,1366.73645998,0.00011199,2]
[330863828,1719880065847,5797.11331304,0.00011199,2]
[330863829,1719880066553,348.53483336,0.00011199,2]
[330863830,1719880077635,3106.94505996,0.00011199,2]
[330863831,1719880081242,4863.16160766,0.00011199,2]
[330863832,1719880103866,3073.2177715,0.00011199,2]
[330863834,1719880141807,300.37937002,0.00011199,2]
[330863835,1719880146189,-1000.01209557,0.00012202,2]
[330863837,1719880151972,959.60022678,0.00011199,2]
[330863838,1719880174159,1270.85793586,0.00011199,2]
[330863839,1719880177166,348.53483336,0.00011199,2]
[330863840,1719880180707,1877.46721545,0.00011199,2]
[330863841,1719880192053,348.53483336,0.00011199,2]
[330863842,1719880194075,2204.95837318,0.00011199,2]
[330863843,1719880202867,150.0,0.00011199,2]
[330863844,1719880203075,150.0,0.00011199,2]
[330863845,1719880203549,150.0,0.00011199,2]
[330863846,1719880203709,150.0,0.00011199,2]
[330863847,1719880203908,150.0,0.00011199,2]
[330863848,1719880204124,150.0,0.00011199,2]
[330863849,1719880204354,298.46034959,0.00011199,2]
[330863850,1719880206786,1136.94159012,0.00011199,2]
[330863851,1719880209184,5594.31883355,0.00011199,2]
[330863863,1719880231976,959.60022678,0.00011199,2]
[330863867,1719880232884,625.64470959,0.00011199,2]
[330863869,1719880233277,-2004.4104095,0.00012273,2]
[330863870,1719880233287,-220.33200542,0.00012273,2]
[330863871,1719880233296,-305.42303826,0.00012273,2]
[330863872,1719880233306,-242.35075042,0.00012302,2]
[330863873,1719880233320,-526.98712938,0.00012302,2]
[330863874,1719880233330,-754.14237346,0.00012302,2]
[330863875,1719880233339,-155.11719868,0.00012302,2]
[330863876,1719880233348,-159.45289812,0.00012302,2]
[330863877,1719880233358,-254.14338377,0.00012302,2]
[330863878,1719880233367,-538.26914857,0.00012302,2]
[330863879,1719880233376,-298.39636076,0.00012302,2]
[330863880,1719880233385,-518.5213064,0.00012302,2]
[330863881,1719880233394,-155.0,0.00012302,2]
[330863882,1719880233404,-202.01948518,0.00012302,2]
[330863883,1719880233412,-158.42162529,0.00012302,2]
[330863884,1719880233422,-328.45118823,0.00012302,2]
[330863885,1719880233431,-264.57347071,0.00012302,2]
[330863886,1719880233441,-155.0,0.00012302,2]
[330863887,1719880233450,-246.7896227,0.00012302,2]
[330863888,1719880233459,-197.7067058,0.00012302,2]
[330863889,1719880233469,-365.10484834,0.00012302,2]
[330863890,1719880233480,-269.57377864,0.00012302,2]
[330863891,1719880233490,-308.06128514,0.00012302,2]
[330863892,1719880233501,-155.10345692,0.00012302,2]
[330863893,1719880233512,-232.79014581,0.00012302,2]
[330863894,1719880233525,-160.36976779,0.00012302,2]
[330863895,1719880233536,-155.28352034,0.00012302,2]
[330863896,1719880233545,-116.44779637,0.00012314,2]
[330863897,1719880233560,-153.12598227,0.00012314,2]
[330863898,1719880233570,-155.17450536,0.00012314,2]
[330863899,1719880233580,-378.91558668,0.00012314,2]
[330863900,1719880233590,-439.94982301,0.00012314,2]
[330863901,1719880233600,-474.91891764,0.00012314,2]
[330863902,1719880233610,-161.02089286,0.00012314,2]
[330863903,1719880233619,-211.56648654,0.00012314,2]
[330863904,1719880233628,-164.25294845,0.00012314,2]
[330863905,1719880233639,-322.36119381,0.00012314,2]
[330863906,1719880233648,-163.77694291,0.00012314,2]
[330863907,1719880233657,-250.0,0.00012879,2]
[330863908,1719880233667,-826.55,0.00012903,2]
[330863909,1719880233676,-668.84,0.00012967,2]
[330863910,1719880233686,-335.09064333,0.00013022,2]
[330863911,1719880233695,-250.0,0.00013122,2]
[330863912,1719880233705,-163.77694291,0.00013128,2]
[330863913,1719880233714,-155.0,0.00013128,2]
[330863914,1719880233724,-304.36573674,0.00013128,2]
[330863915,1719880233733,-296.8408832,0.00013128,2]
[330863916,1719880233743,-660.95341684,0.00013128,2]
[330863917,1719880233753,-3023.35359891,0.00013128,2]
[330863918,1719880233762,-672.35618026,0.00013128,2]
[330863919,1719880233772,-711.94,0.00013274,2]
[330863920,1719880233782,-2589.1,0.00013359,2]
[330863921,1719880233792,-170.28,0.00013385,2]
[330863922,1719880233801,-717.29122203,0.00013472,2]
[330863923,1719880233811,-3073.2177715,0.00013472,2]
[330863924,1719880233821,-155.0,0.00013516,2]
[330863925,1719880233830,-155.0,0.00013516,2]
[330863926,1719880233841,-338.89402138,0.00013516,2]
[330863927,1719880233850,-514.29337895,0.00013516,2]
[330863929,1719880238043,-1115.23306621,0.00013516,2]
[330863930,1719880238054,-302.3204216,0.00013516,2]
[330863931,1719880238064,-284.41538566,0.00013543,2]
[330863932,1719880238074,-156.19862631,0.00013543,2]
[330863933,1719880238083,-155.60831892,0.00013543,2]
[330863934,1719880238092,-217.87188322,0.00013543,2]
[330863935,1719880238102,-155.28888633,0.00013543,2]
[330863936,1719880238111,-160.6222066,0.00013543,2]
[330863937,1719880238123,-155.0,0.00013574,2]
[330863938,1719880238133,-300.32001124,0.00013574,2]
[330863939,1719880238143,-155.35703302,0.00013574,2]
[330863940,1719880238152,-158.95381059,0.00013574,2]
[330863941,1719880238162,-172.06586091,0.00013574,2]
[330863942,1719880238171,-488.68810628,0.00013574,2]
[330863943,1719880238181,-543.96475932,0.00013574,2]
[330863944,1719880238190,-553.07078195,0.00013574,2]
[330863945,1719880238199,-1235.76959491,0.00013574,2]
[330863946,1719880238339,-135.85404876,0.00013574,2]
[330863947,1719880238350,-1000.0,0.00013658,2]
[330863948,1719880238359,-499.99,0.00013699,2]
[330863950,1719880238371,-163.8,0.00013699,2]
[330863952,1719880238380,-141.92186701,0.00013699,2]
[330863954,1719880238392,-2585.31813299,0.00013699,2]
[330863956,1719880238403,-295.02,0.00013699,2]
[330863958,1719880238413,-202.55192225,0.00013759,2]
[330863960,1719880238422,-989.87064,0.0001386,2]
[330863962,1719880238432,-989.87064,0.0001386,2]
[330863964,1719880238442,-220.24,0.0001389,3]
[330863966,1719880238452,-227.0716558,0.00013899,2]
[330863968,1719880238462,-29683.1484,0.000139,2]
[330863970,1719880238471,-15909.9852,0.000139,2]
[330863972,1719880238481,-170.45168613,0.000139,2]
[330863974,1719880238490,-1017.20861976,0.000139,2]
[330863975,1719880238501,-150.55251685,0.000139,2]
[330863977,1719880238511,-989.87065,0.000139,2]
[330863979,1719880238520,-174.85556549,0.000139,2]
[330863982,1719880238530,-935.7891419,0.000139,2]
[330863983,1719880238539,-235.10281431,0.000139,2]
[330863985,1719880238549,-186.33834046,0.00013916,2]
[330863987,1719880238558,-989.87064,0.0001395,2]
[330863988,1719880238569,-547.46641191,0.0001396,2]
[330863989,1719880238578,-989.87064,0.0001398,2]
[330863990,1719880238588,-475.54963094,0.00013989,2]
[330863991,1719880238598,-308.19482801,0.00013989,2]
[330863992,1719880238608,-5272.51,0.0001399,2]
[330863993,1719880238618,-1070.8029335,0.00013999,2]
[330863994,1719880238628,-13089.59428249,0.00014,2]
[330863995,1719880238640,-4162.55185861,0.00014,2]
[330863996,1719880238652,-1482.26936924,0.00014,2]
[330863997,1719880238664,-1078.0799953,0.00014,2]
[330863998,1719880238675,-1095.36771121,0.00014,2]
[330863999,1719880238687,-1840.7599115,0.00014,2]
[330864000,1719880238698,-11449.30971465,0.00014,2]
[330864001,1719880238710,-2763.68000001,0.00014,2]
[330864002,1719880238881,754.14237346,0.00011199,2]
[330864013,1719880240268,-296.8408832,0.00012314,2]
[330864014,1719880240280,-1298.5869595,0.00014,2]
[330864015,1719880240437,-315.08272467,0.00014,2]
[330864082,1719880243443,-155.0,0.00012302,2]
[330864083,1719880243453,-112.41795476,0.00014,2]
[330864095,1719880246357,-304.36573674,0.00012314,2]
[330864096,1719880246367,-348.53483336,0.00013574,2]
[330864097,1719880246379,-3731.07172273,0.00014,2]
[330864118,1719880300278,163.59,0.00010888,2]
[330864119,1719880350791,150.0,0.00021379,120]
[330864121,1719880358064,348.53483336,0.00010888,2]
[330864123,1719880360523,959.60022678,0.00010888,2]
[330864139,1719880447986,959.60022678,0.00010888,2]
[330864140,1719880454275,10876.78488563,0.00011,2]
[330864141,1719880467078,348.53483336,0.00010888,2]
[330864142,1719880472532,8703.57399812,6.94e-05,2]
[330864143,1719880480201,5598.83912475,0.00011199,2]
[330864144,1719880480843,2843.24896848,0.00011199,2]
[330864145,1719880486071,348.53483336,0.00010888,2]
[330864146,1719880500704,944.91389166,0.00011199,2]
[330864147,1719880506664,3114.92167456,0.00011199,2]
[330864150,1719880514693,2005.97479617,0.00011199,2]
[330864152,1719880521799,955.85753929,0.00011199,2]
[330864154,1719880540141,660.95341684,0.00011199,2]
[330864156,1719880549830,3023.35359891,0.00011199,2]
[330864158,1719880552432,4459.20610151,0.00011199,2]
[330864159,1719880553000,959.60022678,0.00010888,2]
[330864160,1719880554310,1133.76952232,0.00011199,2]
[330864161,1719880560736,533.36085656,0.00011199,2]
[330864162,1719880586421,228.00426765,0.00011199,2]
[330864163,1719880586448,842.79866585,0.00011199,2]
[330864164,1719880592078,348.53483336,0.00011199,2]
[330864165,1719880593413,483.77544876,0.00011199,2]
[330864170,1719880620911,155.0,0.00011199,2]
[330864171,1719880621963,518.40512056,0.00011199,2]
[330864172,1719880625336,544.50851021,0.00011199,2]
[330864174,1719880647995,959.60022678,0.00011199,2]
[330864176,1719880656334,269.89901903,0.00011199,2]
[330864177,1719880665565,213.4977548,0.00011199,2]
[330864180,1719880677218,378.28795838,0.00011199,2]
[330864181,1719880685700,298.34993401,0.00011199,2]
[330864182,1719880686862,253.66525961,0.00011199,2]
[330864183,1719880687779,155.54915044,0.00011199,2]
[330864184,1719880697051,242.35075042,0.00011199,2]
[330864185,1719880705078,348.53483336,0.00011199,2]
[330864186,1719880706292,158.38809475,0.00011199,2]
[330864187,1719880726716,1148.35734526,0.00011199,2]
[330864188,1719880731724,944.91389166,0.00011199,2]
[330864189,1719880748996,959.60022678,0.00011199,2]
[330864191,1719880796596,348.53483336,0.00011199,2]
[330864192,1719880840061,959.60022678,0.00011199,2]
[330864193,1719880842456,2446.09468396,0.00011199,2]
[330864194,1719880859458,3285.04261002,0.00011199,2]
[330864195,1719880885430,1070.8029335,0.00011199,2]
[330864196,1719880893591,313.21250003,0.00011199,2]
[330864197,1719880932014,891.61447357,0.00011199,2]
[330864198,1719880995499,163.59,0.00010279,2]
[330864199,1719881013285,789.82,0.00011089,2]
[330864200,1719881036166,403.34944025,0.00011199,2]
[330864201,1719881040414,543.42100843,0.00011199,2]
[330864203,1719881130779,532.46711712,0.00011199,2]
[330864204,1719881142209,1252.75750804,0.00011199,2]
[330864228,1719881158746,944.91389166,0.00011199,2]
[330864229,1719881198436,319.5989622,0.00011199,2]
[330864230,1719881201279,242.35075042,0.00011199,2]
[330864231,1719881225970,749.12044608,0.00011199,2]
[330864232,1719881231104,242.35075042,0.00011199,2]
[330864233,1719881250723,150.0,0.00021468,120]
[330864234,1719881333321,328.03848419,0.00022098,120]
[330864235,1719881338553,202.61158518,0.00011199,2]
[330864236,1719881362317,250.46059175,0.00011199,2]
[330864237,1719881365175,-155.27672255,0.00012102,2]
[330864238,1719881389929,3073.2177715,0.00011199,2]
[330864259,1719881433978,-5.00083056,0.00012102,2]
[330864260,1719881433988,-888.87994629,0.00012202,2]
[330864261,1719881434000,-463.7839458,0.00012202,2]
[330864262,1719881434011,-337.21932,0.00012202,2]
[330864263,1719881434049,-291.44373864,0.00012202,2]
[330864268,1719881434394,155.0,0.00011199,2]
[330864283,1719881440931,-463.56036202,0.00012202,2]
[330864361,1719881443925,-630.92934,0.00012202,2]
[330864362,1719881444193,-5662.20976748,0.00012202,2]
[330864388,1719881446527,-2896.5521411,0.00012202,2]
[330864389,1719881446539,-2325.58293076,0.00012202,2]
[330864390,1719881446550,-1087.15276736,0.00012202,2]
[330864412,1719881458728,325.76900242,0.00011199,2]
[330864413,1719881474052,209.74,0.00010959,2]
[330864414,1719881493022,196.06739155,0.00011199,2]
[330864415,1719881501353,774.92376784,0.00011199,2]
[330864416,1719881521420,96793.87886913,0.00011199,2]
[330864417,1719881529965,155.0,0.00011199,2]
[330864418,1719881546788,29048.17063881,0.00011199,2]
[330864419,1719881549451,795.2,0.00010605,2]
[330864420,1719881550883,155.0,0.00011199,2]
[330864421,1719881562385,546.48851695,0.00011199,2]
[330864422,1719881606776,292.47425253,0.00011199,2]
[330864423,1719881672669,1629.52644516,0.00011199,2]
[330864424,1719881678625,243.40220542,0.00011199,2]
[330864426,1719881711485,860.17499323,0.00011199,2]
[330864427,1719881724891,366.50798641,0.00011199,2]
[330864428,1719881804046,346.40487547,0.00011199,2]
[330864430,1719881840295,183.72715046,0.00011199,2]
[330864431,1719881880739,155.0,0.00011199,2]
[330864432,1719881888120,526.98712938,0.00011199,2]
[330864433,1719881889961,3073.2177715,0.00011199,2]
[330864434,1719881948338,155.27672255,0.00011199,2]
[330864435,1719881948718,438.44980414,0.00011199,2]
[330864436,1719882031234,264.53806509,0.00011199,2]
[330864437,1719882051252,1629.52644516,0.00011199,2]
[330864439,1719882081224,605.90318009,0.0001038,2]
[330864440,1719882087541,4453.94405105,0.00011199,2]
[330864441,1719882105663,158.96341014,0.00011199,2]
[330864442,1719882124123,3073.2177715,0.00011199,2]
[330864443,1719882134516,155.0,0.0001038,2]
[330864444,1719882164334,3695.0,0.00011199,2]
[330864445,1719882168574,883.54,0.0001018,2]
[330864446,1719882168866,308.19482801,0.00011199,2]
[330864447,1719882170766,3107.31885347,0.00011199,2]
[330864448,1719882179108,200.19866925,0.00011199,2]
[330864449,1719882196844,2828.80779475,0.00011199,2]
[330864450,1719882216722,978.16242731,0.00011199,2]
[330864451,1719882238744,227.0716558,0.00011199,2]
[330864452,1719882238779,650.69302056,0.00011199,2]
[330864453,1719882238816,492.08745372,0.00011199,2]
[330864454,1719882242528,155.0,0.00011199,2]
[330864455,1719882247024,5491.44493384,0.00011199,2]
[330864456,1719882247848,492.08745372,0.00011199,2]
[330864457,1719882254143,366.50798641,0.00011199,2]
[330864458,1719882257530,155.0,0.00011199,2]
[330864459,1719882260461,1500.0,0.00011199,2]
[330864460,1719882275501,186.52661499,0.00011199,2]
[330864461,1719882278991,3073.2177715,0.00011199,2]
[330864462,1719882279068,517.9671284,0.00011199,2]
[330864463,1719882283640,526.98712938,0.00011199,2]
[330864464,1719882301943,155.0,0.00011199,2]
[330864465,1719882303645,201.51938811,0.00011199,2]
[330864466,1719882308500,365.14265726,0.00011199,2]
[330864467,1719882311460,155.0,0.00011199,2]
[330864468,1719882312429,269.27286365,0.00011199,2]
[330864469,1719882314233,163.78677907,0.00011199,2]
[330864470,1719882318873,158.25040673,0.00011199,2]
[330864471,1719882319420,1134.08647708,0.00011199,2]
[330864472,1719882333869,400.09114959,0.00011199,2]
[330864473,1719882336194,363.58934432,0.00011199,2]
[330864474,1719882338198,155.30226453,0.00011199,2]
[330864475,1719882340121,155.26250993,0.00011199,2]
[330864476,1719882340919,365.78781787,0.00011199,2]
[330864477,1719882355379,235.41524417,0.00011199,2]
[330864478,1719882360612,155.0,0.00011199,2]
[330864479,1719882369063,196.39295394,0.00011199,2]
[330864480,1719882381425,301.37576212,0.00011199,2]
[330864481,1719882382497,155.0,0.00011199,2]
[330864482,1719882388085,346.40487547,0.00011199,2]
[330864483,1719882389272,206.17373388,0.00011199,2]
[330864484,1719882395249,438.44980414,0.00011199,2]
[330864485,1719882401174,155.0,0.00011199,2]
[330864486,1719882413808,155.0,0.00011199,2]
[330864487,1719882420012,201.87180983,0.00011199,2]
[330864488,1719882438823,290.97192725,0.00011199,2]
[330864489,1719882449853,482.87871356,0.00011199,2]
[330864490,1719882456142,604.78351958,0.00011199,2]
[330864491,1719882466440,1169.048298,0.00011199,2]
[330864492,1719882490436,955.9732708,0.00011199,2]
[330864493,1719882521550,155.0,0.00011199,2]
[330864494,1719882525391,217.90047204,0.00011199,2]
[330864495,1719882556173,-2356.31161324,0.00011278,2]
[330864496,1719882556194,-328.79668676,0.00011344,2]
[330864497,1719882568505,1051.20234621,0.00011199,2]
[330864498,1719882574715,-171.20331324,0.00011344,2]
[330864499,1719882574740,-300.0,0.00011377,2]
[330864500,1719882574767,-3524.79668676,0.00011378,2]
[330864501,1719882586057,1069.67493178,0.00011199,2]
[330864502,1719882596561,310.0,0.00011199,2]
[330864510,1719882631594,-1000.0,0.00011297,2]
[330864511,1719882631603,-17.04312744,0.00011374,2]
[330864512,1719882631615,-232.95687256,0.00011374,2]
[330864513,1719882631624,-3763.43905616,0.00011378,2]
[330864514,1719882631811,-450.0,0.00011378,2]
[330864515,1719882631822,-1001.55012815,0.00011378,2]
[330864516,1719882631833,-575.27790771,0.00011378,2]
[330864517,1719882631845,-791.24822385,0.00011378,2]
[330864518,1719882631887,-422.57359696,0.00011378,2]
[330864519,1719882631899,-736.70073511,0.00011378,2]
[330864520,1719882631959,-1660.29818461,0.00011378,2]
[330864521,1719882631971,-10974.11548069,0.00011378,2]
[330864522,1719882631980,-250.0,0.00011379,2]
[330864523,1719882631989,-770.33,0.00011386,2]
[330864524,1719882631998,-156.13,0.00011428,2]
[330864525,1719882632007,-1280.15,0.00011434,2]
[330864526,1719882632016,-169.39,0.00011673,2]
[330864527,1719882632026,-150.99,0.00011773,2]
[330864529,1719882632035,-383.65473788,0.00011804,2]
[330864531,1719882632044,-499.99,0.00011804,2]
[330864533,1719882632055,-4134.69,0.00011804,2]
[330864535,1719882632064,-826.09,0.00011804,2]
[330864536,1719882632074,-150.0,0.00011845,2]
[330864537,1719882632083,-150.0,0.00011873,2]
[330864538,1719882632092,-413.92057913,0.00011947,2]
[330864539,1719882632102,-150.0,0.00012019,2]
[330864540,1719882632114,-247.94,0.00012043,2]
[330864541,1719882632124,-247.94,0.00012046,2]
[330864542,1719882632135,-247.94,0.0001205,2]
[330864543,1719882632146,-247.94,0.00012053,2]
[330864544,1719882632155,-247.94,0.00012056,2]
[330864545,1719882632165,-247.94,0.00012059,2]
[330864546,1719882632177,-247.94,0.00012062,2]
[330864547,1719882632189,-247.94,0.00012065,2]
[330864548,1719882632198,-247.94,0.00012069,2]
[330864549,1719882632208,-247.94,0.00012072,2]
[330864550,1719882632223,-247.94,0.00012075,2]
[330864551,1719882632232,-150.0,0.00012076,2]
[330864552,1719882632254,-247.94,0.00012078,2]
[330864553,1719882632267,-1715.45,0.0001208,2]
[330864554,1719882632276,-247.94,0.00012081,2]
[330864555,1719882632285,-247.94,0.00012084,2]
[330864556,1719882632298,-247.94,0.00012088,2]
[330864557,1719882632307,-247.94,0.00012091,2]
[330864558,1719882632316,-247.94,0.00012094,2]
[330864559,1719882632327,-247.94,0.00012097,2]
[330864560,1719882632337,-387.51,0.00012098,2]
[330864561,1719882632347,-247.94,0.000121,2]
[330864562,1719882632357,-247.94,0.00012104,2]
[330864563,1719882632367,-59511.29026191,0.00012163,2]
[330864568,1719882637678,-1344.73386047,0.00012163,2]
[330864569,1719882637761,-51368.97587762,0.00012163,2]
[330864570,1719882637771,-566.68914,0.0001221,2]
[330864571,1719882637781,-566.68914,0.0001222,2]
[330864572,1719882637790,-170.55,0.00012251,2]
[330864573,1719882637800,-566.68914,0.0001226,2]
[330864574,1719882637813,-308.19482801,0.00012273,2]
[330864575,1719882637823,-264.53806509,0.00012273,2]
[330864576,1719882637833,-366.50798641,0.00012273,2]
[330864577,1719882637842,-566.68914,0.0001229,2]
[330864578,1719882637852,-660.4164294,0.00012302,2]
[330864579,1719882637862,-480.15005688,0.00012302,2]
[330864580,1719882637873,-227.0716558,0.00012302,2]
[330864581,1719882637882,-492.08745372,0.00012314,2]
[330864582,1719882637892,-492.08745372,0.00012314,2]
[330864583,1719882637902,-202.82936672,0.00012314,2]
[330864584,1719882637912,-566.68914,0.0001233,2]
[330864585,1719882637922,-566.68914,0.0001237,2]
[330864586,1719882637932,-883.54,0.00012444,2]
[330864587,1719882637941,-225.3,0.00012548,2]
[330864588,1719882637951,-176.003726,0.00012597,2]
[330864589,1719882637960,-176.003726,0.00012597,2]
[330864590,1719882637970,-2478.964553,0.00012597,2]
[330864591,1719882637984,-151.0,0.00012597,2]
[330864592,1719882637994,-2478.964553,0.00012597,2]
[330864593,1719882638004,-151.0,0.00012597,2]
[330864594,1719882638013,-617.223051,0.00012597,2]
[330864595,1719882638023,-617.223051,0.00012597,2]
[330864596,1719882638033,-151.0,0.00012597,2]
[330864597,1719882638043,-151.0,0.00012597,2]
[330864598,1719882638053,-151.0,0.00012597,2]
[330864599,1719882638062,-1000.0,0.0001271,2]
[330864600,1719882638072,-309.11,0.00012877,2]
[330864601,1719882638082,-354.39,0.00012877,2]
[330864602,1719882638091,-528.26,0.00012877,2]
[330864603,1719882638101,-300.0,0.00012877,2]
[330864604,1719882638110,-424.18,0.00012877,2]
[330864605,1719882638120,-528.26,0.00012877,2]
[330864606,1719882638130,-423.82,0.00012877,2]
[330864607,1719882638139,-526.38,0.00012877,2]
[330864608,1719882638149,-151.0,0.00012877,2]
[330864609,1719882638159,-151.0,0.00012877,2]
[330864610,1719882638168,-151.0,0.00012877,2]
[330864611,1719882638178,-197.228448,0.00012877,2]
[330864612,1719882638188,-162.060796,0.00012877,2]
[330864613,1719882638198,-151.0,0.00012877,2]
[330864614,1719882638207,-151.0,0.00012877,2]
[330864615,1719882638217,-151.0,0.00012877,2]
[330864616,1719882638231,-151.0,0.00012877,2]
[330864617,1719882638240,-151.0,0.00012877,2]
[330864618,1719882638250,-151.0,0.00012877,2]
[330864619,1719882638260,-151.0,0.00012877,2]
[330864620,1719882638270,-151.0,0.00012877,2]
[330864621,1719882638281,-151.0,0.00012877,2]
[330864622,1719882638290,-151.0,0.00012877,2]
[330864623,1719882638303,-151.0,0.00012877,2]
[330864624,1719882638313,-244.805303,0.00012877,2]
[330864625,1719882638323,-244.805303,0.00012877,2]
[330864626,1719882638334,-320.42549,0.00012877,2]
[330864627,1719882638343,-151.0,0.00012877,2]
[330864628,1719882638353,-320.42549,0.00012877,2]
[330864629,1719882638362,-151.0,0.00012877,2]
[330864630,1719882638372,-151.0,0.00012877,2]
[330864631,1719882638382,-151.0,0.00012877,2]
[330864632,1719882638392,-176.003726,0.00012877,2]
[330864633,1719882638402,-176.003726,0.00012877,2]
[330864634,1719882638413,-2478.964553,0.00012877,2]
[330864635,1719882638423,-151.0,0.00012877,2]
[330864636,1719882638433,-2478.964553,0.00012877,2]